bitfinex/quotes_SOLUSD_20240607
["timestamp","ask_amount","ask_price","bid_price","bid_amount"]
[1717783732578,1.00481599,161.01,161.0,7680.74334137]
[1717783734075,6.37916187,161.01,161.0,7680.74334137]
[1717783734782,8.67706187,161.01,161.0,7680.74334137]
[1717783735170,28.67706187,161.01,161.0,7680.74334137]
[1717783735385,8.67706187,161.01,161.0,7680.74334137]
[1717783735590,2.2979,161.01,161.0,7680.74334137]
[1717783735789,2.2979,161.01,161.0,7662.09242436]
[1717783736168,2.2979,161.01,161.0,7643.44150735]
[1717783736681,2.2979,161.01,161.0,7618.44150735]
[1717783737673,22.9796,161.01,161.0,7618.44150735]
[1717783737892,6.8938,161.01,161.0,7618.44150735]
[1717783738575,13.7877,161.01,161.0,7618.44150735]
[1717783738773,42.9796,161.01,161.0,7618.44150735]
[1717783738996,42.9796,161.01,161.0,7593.44150735]
[1717783739203,42.9796,161.01,161.0,7591.58150735]
[1717783739488,52.9796,161.01,161.0,7589.72150735]
[1717783739797,52.9796,161.01,161.0,7586.00150735]
[1717783739986,52.9796,161.01,161.0,7584.13441363]
[1717783740301,52.9796,161.01,161.0,7574.31131991]
[1717783740503,52.9796,161.01,161.0,7554.90011991]
[1717783740795,52.9796,161.01,161.0,7500.78666073]
[1717783741175,52.9796,161.01,161.0,7486.15796701]
[1717783741376,15.1591747,161.01,161.0,7486.15796701]
[1717783741693,31.2449747,161.01,161.0,7486.15796701]
[1717783741898,41.2449747,161.01,161.0,7479.29052487]
[1717783742102,41.2449747,161.01,161.0,7437.34567002]
[1717783742399,41.2449747,161.01,161.0,7341.60032023]
[1717783742576,41.2449747,161.01,161.0,7309.82782066]
[1717783742779,41.2449747,161.01,161.0,7289.46361974]
[1717783742991,41.2449747,161.01,161.0,7202.85609159]
[1717783743176,161.2449747,161.01,161.0,6806.62073985]
[1717783743378,77.85394488,161.01,161.0,6778.69386072]
[1717783743707,145.38465136,161.01,161.0,6454.13519859]
[1717783743876,145.38465136,161.01,161.0,6392.53784622]
[1717783743877,265.38465136,161.01,161.0,6392.53784622]
[1717783744201,287.80748391,161.01,161.0,6266.78753022]
[1717783744397,246.25793896,161.01,161.0,6098.42794756]
[1717783744598,312.46790161,161.01,161.0,6052.61917356]
[1717783744803,298.17642358,161.01,161.0,5883.56702248]
[1717783745002,298.17642358,161.01,161.0,5859.62091575]
[1717783745299,292.88896495,161.01,161.0,5813.64998398]
[1717783745604,209.86542435,161.01,161.0,5771.23949276]
[1717783745783,236.25349821,161.01,161.0,5728.95349276]
[1717783745989,248.77240095,161.01,161.0,5631.38582156]
[1717783746177,248.77240095,161.01,161.0,5346.64233168]
[1717783746377,242.51749821,161.01,161.0,5245.10974883]
[1717783746580,242.51749821,161.01,161.0,5061.2528696]
[1717783746581,275.70131571,161.01,161.0,5061.2528696]
[1717783746790,278.58764933,161.01,161.0,4757.51929568]
[1717783747001,309.85274659,161.01,161.0,4660.04750743]
[1717783747215,309.85274659,161.01,161.0,4343.93684189]
[1717783747216,278.58764933,161.01,161.0,4343.93684189]
[1717783747426,313.1255476,161.01,161.0,4280.54856328]
[1717783747573,258.02221352,161.01,161.0,4165.80766328]
[1717783747777,258.02221352,161.01,161.0,4143.30802987]
[1717783747998,251.75821352,161.01,161.0,4046.46379522]
[1717783748200,202.54850253,161.01,161.0,4002.49537543]
[1717783748379,75.07429862,161.01,161.0,3935.4106724]
[1717783748700,183.85891504,161.01,161.0,3933.54004238]
[1717783748881,63.85891504,161.01,161.0,3919.79941236]
[1717783749076,183.85891504,161.01,161.0,3880.89439781]
[1717783749381,195.07396631,161.01,161.0,3806.9734012]
[1717783749583,195.07396631,161.01,161.0,3547.40567612]
[1717783749790,225.07396631,161.01,161.0,3483.74169368]
[1717783749999,179.12661546,161.01,161.0,3420.5589731]
[1717783750301,238.81553886,161.01,161.0,3244.19638206]
[1717783750481,276.33553886,161.01,161.0,3085.01661285]
[1717783750678,306.60525768,161.01,161.0,2343.07168239]
[1717783750881,306.60525768,161.01,161.0,2204.67934281]
[1717783750882,263.81663612,161.01,161.0,2204.67934281]
[1717783751104,232.55153886,161.01,161.0,2152.19503151]
[1717783751314,195.07396631,161.01,161.0,2089.74882838]
[1717783751522,75.07396631,161.01,161.0,2065.40114801]
[1717783751815,75.07396631,161.01,161.0,2032.56876764]
[1717783752000,183.85891504,161.01,161.0,2013.63598727]
[1717783752184,63.85891504,161.01,161.0,1988.4604069]
[1717783752384,63.85891504,161.01,161.0,1981.57822653]
[1717783752609,63.85891504,161.01,161.0,1961.54142653]
[1717783752811,63.85891504,161.01,161.0,1954.65952653]
[1717783753108,456.58430729,161.01,161.0,1913.11624616]
[1717783753413,576.58430729,161.01,161.0,1911.24596579]
[1717783753602,189.08430729,161.01,161.0,1909.37568542]
[1717783753784,166.30997579,161.01,161.0,1902.06845184]
[1717783753989,166.30997579,161.01,161.0,1900.19817147]
[1717783754198,166.30997579,161.01,161.0,1898.32817147]
[1717783754403,166.30997579,161.01,161.0,1883.30207147]
[1717783754404,46.30997579,161.01,161.0,1883.30207147]
[1717783754598,31.2449747,161.01,161.0,1881.43207147]
[1717783754902,31.2449747,161.01,161.0,1850.48962014]
[1717783755085,41.2449747,161.01,161.0,1846.82031753]
[1717783755484,41.2449747,161.01,161.0,1844.48531753]
[1717783755804,31.2449747,161.01,161.0,1842.62531753]
[1717783756004,31.2449747,161.01,161.0,1831.51067144]
[1717783756202,31.2449747,161.01,161.0,1830.82637144]
[1717783756388,31.2449747,161.01,161.0,1812.17545443]
[1717783757008,31.2449747,161.01,161.0,1802.43055182]
[1717783757182,41.2449747,161.01,161.0,1794.60924921]
[1717783757383,41.2449747,161.01,161.0,1791.63344921]
[1717783757608,31.2449747,161.01,161.0,1789.7641466]
[1717783757810,31.2449747,161.01,161.0,1787.89484399]
[1717783757996,31.2449747,161.01,161.0,1781.94364399]
[1717783758304,31.2449747,161.01,161.0,1767.1623936]
[1717783758305,41.2449747,161.01,161.0,1767.1623936]
[1717783758496,41.2449747,161.01,161.0,1765.29374321]
[1717783758697,31.2449747,161.01,161.0,1757.47419282]
[1717783759307,31.2449747,161.01,161.0,1751.52249282]
[1717783759501,41.2449747,161.01,161.0,1748.54689282]
[1717783759693,31.2449747,161.01,161.0,1745.57129282]
[1717783760693,22.9796,161.01,161.0,1745.57129282]
[1717783761209,31.2449747,161.01,161.0,1745.57129282]
[1717783761410,22.9796,161.01,161.0,1745.57129282]
[1717783761812,31.2449747,161.01,161.0,1737.66889282]
[1717783762198,22.9796,161.01,161.0,1719.91496956]
[1717783762500,22.9796,161.01,161.0,1697.27199731]
[1717783762701,22.9796,161.01,161.0,1692.42937405]
[1717783762913,64.24469726,161.01,161.0,1677.98675079]
[1717783763101,64.24469726,161.01,161.0,1671.78672753]
[1717783763423,64.24469726,161.01,161.0,1634.26878726]
[1717783763603,32.9796,161.01,161.0,1632.401764]
[1717783763806,22.9796,161.01,161.0,1632.401764]
[1717783763994,31.2449747,161.01,161.0,1632.401764]
[1717783764692,2.2979,161.01,161.0,1632.401764]
[1717783764998,22.9796,161.01,161.0,1632.401764]
[1717783765394,22.9796,161.01,161.0,1630.46608371]
[1717783766634,2.2979,161.01,161.0,1630.46608371]
[1717783767119,4.5954,161.03,161.0,1630.46608371]
[1717783767293,2.2979,161.01,161.0,1630.46608371]
[1717783767498,4.5949,161.05,161.0,1630.46608371]
[1717783767724,6.264,161.16,161.0,1637.01708371]
[1717783768020,4.5952,161.04,161.0,1637.01708371]
[1717783768229,6.8917,161.07,161.0,1637.01708371]
[1717783768396,4.5945,161.06,161.0,1637.01708371]
[1717783768600,9.1854,161.13,161.0,1630.46608371]
[1717783768791,24.842798,161.17,161.0,1630.46608371]
[1717783768792,2.2971,161.07,161.0,1630.46608371]
[1717783768999,9.186,161.12,161.0,1630.46608371]
[1717783769211,4.5927,161.13,161.0,1630.46608371]
[1717783769515,24.842798,161.17,161.0,1630.46608371]
[1717783769720,2.2966,161.11,161.0,1630.46608371]
[1717783769899,6.8885,161.14,161.0,1630.46608371]
[1717783770090,9.1844,161.15,161.0,1611.8151667]
[1717783770291,4.5924,161.14,161.0,1611.8151667]
[1717783770500,29.434298,161.17,161.0,1611.8151667]
[1717783770697,9.1822,161.19,161.0,1611.8151667]
[1717783770900,2.2964,161.12,161.0,1611.8151667]
[1717783771113,22.982948,161.17,161.05,10.0]
[1717783771325,2.2955,161.19,161.05,10.0]
[1717783771530,4.59,161.22,161.05,10.0]
[1717783771829,6.1967,161.4,161.05,10.0]
[1717783771830,4.5893,161.25,161.05,10.0]
[1717783772008,2.295,161.22,161.05,10.0]
[1717783772197,10.0,161.42,161.05,10.0]
[1717783772198,4.5881,161.29,161.07,10.0]
[1717783772401,10.0,161.42,161.06,10.0]
[1717783772701,2.295,161.22,161.07,2.2971]
[1717783772897,4.5891,161.25,161.06,10.0]
[1717783773136,10.0,161.41,161.03,10.0]
[1717783773322,10.0,161.41,161.0,1662.10881745]
[1717783773323,11.4725,161.21,161.06,2.2971]
[1717783773510,4.5884,161.28,161.08,10.0]
[1717783773712,2.2947,161.24,161.1,10.0]
[1717783774025,2.2949,161.23,161.08,2.2969]
[1717783774333,4.5885,161.27,161.08,2.2969]
[1717783774500,2.2948,161.23,161.08,2.2969]
[1717783774808,4.5912,161.18,160.94,12.6534]
[1717783775122,4.5912,161.18,161.04,10.0]
[1717783775610,6.8865,161.19,161.04,10.0]
[1717783775921,11.4725,161.28,160.94,8.0557]
[1717783775922,9.1828,161.17,160.98,2.2983]
[1717783776121,4.5913,161.18,160.96,4.5973]
[1717783776321,4.5916,161.17,161.01,11.42642778]
[1717783776523,9.1793,161.24,161.01,11.42642778]
[1717783776711,2.2955,161.18,161.0,1604.60921139]
[1717783776914,20.6495,161.28,161.1,2.2966]
[1717783777118,11.4725,161.28,161.06,38.85203424]
[1717783777433,6.8833,161.26,161.06,41.14923424]
[1717783777634,9.1785,161.25,161.07,38.84962211]
[1717783777816,21.4725,161.28,161.07,38.84962211]
[1717783778007,4.5906,161.2,161.07,38.84962211]
[1717783778232,4.5919,161.16,161.07,38.84962211]
[1717783778408,21.4725,161.28,161.0,1604.60921139]
[1717783778409,2.2961,161.14,161.0,1643.47572464]
[1717783778606,10.0,161.22,161.0,1643.47572464]
[1717783778810,2.2968,161.09,161.0,1643.47572464]
[1717783779007,2.297,161.08,161.0,1643.47572464]
[1717783779308,2.2968,161.09,161.0,1643.47572464]
[1717783779528,6.8884,161.14,161.0,1643.47572464]
[1717783779529,10.0,161.18,161.0,1643.47572464]
[1717783779707,4.5934,161.1,161.0,1643.47572464]
[1717783780230,10.0,161.3,161.0,1604.60921139]
[1717783780444,2.2976,161.04,161.0,1604.60921139]
[1717783780612,2.297,161.08,161.0,1604.60921139]
[1717783780812,13.7773,161.14,161.0,1604.60921139]
[1717783781023,2.2968,161.1,161.0,1604.60921139]
[1717783781340,4.5905,161.21,161.0,1604.60921139]
[1717783781509,4.5908,161.19,161.0,1604.60921139]
[1717783781708,4.5911,161.18,161.0,1604.60921139]
[1717783781924,2.2971,161.08,161.0,1604.60921139]
[1717783782122,11.4725,161.28,161.0,1604.60921139]
[1717783782123,2.2973,161.06,161.0,1604.60921139]
[1717783782428,10.0,161.2,161.0,1604.60921139]
[1717783782948,2.2979,161.01,161.0,1603.64291139]
[1717783783110,4.5947,161.06,161.0,1603.64291139]
[1717783783306,0.159864,161.22,161.0,1603.64291139]
[1717783783307,2.2979,161.01,161.0,1603.64291139]
[1717783783613,22.9796,161.01,161.0,1585.0105283]
[1717783784426,22.9796,161.01,161.0,1583.9622283]
[1717783784603,22.9796,161.01,161.0,1580.9869283]
[1717783784811,32.9796,161.01,161.0,1578.0116283]
[1717783785238,32.9796,161.01,161.0,1568.3696283]
[1717783785435,22.9796,161.01,161.0,1565.3942283]
[1717783786528,22.9796,161.01,161.0,1561.3195283]
[1717783786831,22.9796,161.01,161.0,1556.47664044]
[1717783787046,22.9796,161.01,161.0,1553.50124044]
[1717783787344,22.9796,161.01,161.0,1550.52584044]
[1717783787923,22.9796,161.01,161.0,1524.21724044]
[1717783788133,32.9796,161.01,161.0,1493.06575258]
[1717783788331,32.9796,161.01,161.0,1491.19826472]
[1717783788529,32.9796,161.01,161.0,1485.24746472]
[1717783788741,22.9796,161.01,161.0,1482.27206472]
[1717783788954,32.9796,161.01,161.0,1477.42917686]
[1717783789121,22.9796,161.01,161.0,1472.586289]
[1717783789829,10.0,161.1,161.0,1472.586289]
[1717783790040,19.05916092,161.19,161.0,1472.586289]
[1717783790242,4.5943,161.07,161.0,1453.95390591]
[1717783790625,10.159864,161.22,161.0,1453.95390591]
[1717783790936,2.2973,161.06,161.0,1453.95390591]
[1717783791158,10.159864,161.22,161.0,1453.95390591]
[1717783791320,2.2977,161.03,161.0,1453.95390591]
[1717783791639,10.0,161.2,161.0,1453.95390591]
[1717783791827,2.2979,161.02,161.0,1453.95390591]
[1717783792231,10.159864,161.22,161.0,1453.95390591]
[1717783792429,2.2972,161.06,161.0,1453.95390591]
[1717783792622,2.2977,161.03,161.0,1453.95390591]
[1717783792957,2.2979,161.01,161.0,1453.95390591]
[1717783793442,13.7805,161.1,161.0,1453.95390591]
[1717783793745,2.2969,161.09,161.0,1453.95390591]
[1717783793918,2.297,161.08,161.0,1453.95390591]
[1717783794116,11.4781,161.18,161.0,1453.95390591]
[1717783794440,2.2964,161.12,161.0,1453.95390591]
[1717783794639,2.2961,161.14,161.0,1453.95390591]
[1717783795139,2.2968,161.09,161.0,1453.95390591]
[1717783795345,0.159864,161.22,161.0,1453.95390591]
[1717783795554,4.5918,161.16,161.0,1453.95390591]
[1717783795763,2.2965,161.11,161.0,1453.95390591]
[1717783795920,4.5918,161.16,161.0,1453.95390591]
[1717783796126,2.2967,161.1,161.01,0.76362907]
[1717783796428,2.2968,161.09,161.0,1453.95390591]
[1717783796946,2.2973,161.06,161.0,1435.32152282]
[1717783797248,4.5933,161.11,161.0,1435.32152282]
[1717783797438,2.2973,161.06,161.0,1435.32152282]
[1717783797630,0.159864,161.22,161.0,1435.32152282]
[1717783798321,2.2979,161.02,161.0,1435.32152282]
[1717783798521,2.2979,161.01,161.0,1435.32152282]
[1717783800457,4.5953,161.04,161.0,1435.32152282]
[1717783800634,2.2976,161.04,161.0,1435.32152282]
[1717783800839,2.2979,161.01,161.0,1435.32152282]
[1717783801525,4.5956,161.03,161.0,1435.32152282]
[1717783801726,0.159864,161.22,161.0,1435.32152282]
[1717783801947,2.2969,161.09,161.0,1435.32152282]
[1717783802149,2.2958,161.16,161.02,2.2977]
[1717783802437,0.159864,161.22,161.0,1435.32152282]
[1717783802651,9.1839,161.16,161.0,1435.32152282]
[1717783802829,2.2965,161.11,161.0,1435.32152282]
[1717783803028,2.2972,161.07,161.0,1435.32152282]
[1717783803243,0.159864,161.22,161.0,1435.32152282]
[1717783803629,14.591,161.19,161.0,1428.04907806]
[1717783803831,0.159864,161.22,161.08,2.2969]
[1717783804175,0.159864,161.22,161.03,2.2975]
[1717783804176,2.2958,161.16,161.03,2.2975]
[1717783804371,4.5915,161.17,161.0,1466.91559131]
[1717783804657,9.1854,161.13,161.0,1466.91559131]
[1717783804857,4.591,161.19,161.0,1466.91559131]
[1717783805061,6.8855,161.21,161.0,1466.91559131]
[1717783805361,0.159864,161.22,161.0,1466.62879131]
[1717783805564,0.159864,161.22,161.05,4.5947]
[1717783806131,0.159864,161.22,161.0,1466.62879131]
[1717783806656,2.2962,161.13,161.0,1466.62879131]
[1717783806844,4.5906,161.2,161.0,1466.62879131]
[1717783807049,0.159864,161.22,161.01,9.1919]
[1717783807250,0.159864,161.22,161.03,13.7858]
[1717783807580,6.8859,161.2,161.0,1466.62879131]
[1717783807737,2.2965,161.11,161.0,1466.62879131]
[1717783807951,2.2966,161.11,161.0,1466.62879131]
[1717783808149,0.159864,161.22,161.0,1466.62879131]
[1717783808150,2.2969,161.09,161.0,1466.62879131]
[1717783808572,2.2975,161.05,161.0,1466.62879131]
[1717783808748,11.4836,161.1,161.0,1466.62879131]
[1717783808749,4.5939,161.09,161.0,1466.62879131]
[1717783808952,2.2967,161.1,161.0,1466.62879131]
[1717783809179,9.1868,161.11,161.0,1466.62879131]
[1717783809344,10.0,161.14,161.0,1466.62879131]
[1717783809545,10.0,161.16,161.0,1460.59859131]
[1717783810059,2.2963,161.13,161.0,1460.59859131]
[1717783810279,2.296,161.15,161.01,2.2978]
[1717783810570,2.296,161.15,161.02,2.2977]
[1717783810745,2.296,161.15,161.0,1441.96620822]
[1717783810746,10.0,161.16,161.0,1441.96620822]
[1717783810944,10.0,161.13,161.0,1441.96620822]
[1717783811158,20.6683,161.12,161.0,1441.96620822]
[1717783811360,2.2974,161.05,161.0,1435.61460822]
[1717783811694,4.5945,161.06,161.0,1435.61460822]
[1717783812063,2.2979,161.01,161.0,1396.74809497]
[1717783812294,13.7877,161.01,161.0,1396.74809497]
[1717783812449,2.2979,161.01,161.0,1394.03499497]
[1717783812850,10.0,161.08,161.0,1394.03499497]
[1717783813055,2.2979,161.01,161.0,1394.03499497]
[1717783813249,22.9796,161.01,161.0,1394.03499497]
[1717783813450,10.0,161.13,161.0,1394.03499497]
[1717783813657,2.2979,161.01,161.0,1394.03499497]
[1717783813867,2.2978,161.03,161.0,1394.03499497]
[1717783814069,2.2977,161.03,161.0,1394.03499497]
[1717783814251,4.5944,161.07,161.0,1394.03499497]
[1717783814448,6.8938,161.01,161.0,1394.03499497]
[1717783814653,22.9796,161.01,161.0,1394.03499497]
[1717783815261,152.9796,161.01,161.0,1394.03499497]
[1717783815490,32.9796,161.01,161.0,1394.03499497]
[1717783816173,12.2979,161.01,161.0,1394.03499497]
[1717783816363,4.5944,161.07,161.0,1394.03499497]
[1717783816572,2.2979,161.01,161.0,1394.03499497]
[1717783816875,32.9796,161.01,161.0,1394.03499497]
[1717783817073,32.9796,161.01,161.0,1375.40261188]
[1717783817074,26.0857,161.01,161.0,1375.40261188]
[1717783817386,2.2979,161.01,161.0,1375.40261188]
[1717783817569,12.2979,161.01,161.0,1375.40261188]
[1717783817886,22.9796,161.01,161.0,1375.40261188]
[1717783818058,32.9796,161.01,161.0,1374.03961188]
[1717783818597,32.9796,161.01,161.0,1373.51011188]
[1717783818760,152.9796,161.01,161.0,1373.51011188]
[1717783818961,152.9796,161.01,161.0,1347.20131188]
[1717783819306,162.9796,161.01,161.0,1304.22581188]
[1717783819465,162.9796,161.01,161.0,1254.58391188]
[1717783819664,165.42622,161.01,161.0,1234.86261188]
[1717783819866,165.42622,161.01,161.0,1231.88651188]
[1717783820066,165.42622,161.01,161.0,1225.93531188]
[1717783820288,165.42622,161.01,161.0,1212.95971188]
[1717783820467,45.42622,161.01,161.0,1212.95971188]
[1717783820667,155.42622,161.01,161.0,1207.00871188]
[1717783820974,32.9796,161.01,161.0,1205.64877355]
[1717783822085,162.9796,161.01,161.0,1205.64877355]
[1717783822271,162.9796,161.01,161.0,1202.67337355]
[1717783822583,32.9796,161.01,161.0,1199.69807355]
[1717783822788,152.9796,161.01,161.0,1199.69807355]
[1717783823289,152.9796,161.01,161.0,1196.72227355]
[1717783823475,162.9796,161.01,161.0,1190.76987355]
[1717783823665,152.9796,161.01,161.0,1187.79437355]
[1717783823880,32.9796,161.01,161.0,1169.16199046]
[1717783824202,32.9796,161.01,161.0,1162.63639046]
[1717783824203,152.9796,161.01,161.0,1162.63639046]
[1717783824364,162.9796,161.01,161.0,1159.66079046]
[1717783824685,162.9796,161.01,161.0,1156.68479046]
[1717783824985,162.9796,161.01,161.0,1150.73279046]
[1717783825159,162.9796,161.01,161.0,1142.33427046]
[1717783825366,153.3837,161.01,161.0,1134.04339895]
[1717783825565,155.6816,161.01,161.0,1097.54297749]
[1717783825766,162.5755,161.01,161.0,1097.54297749]
[1717783825993,170.05008771,161.01,161.0,1094.56657749]
[1717783826197,181.4173039,161.01,161.0,1094.56657749]
[1717783826485,162.5755,161.01,161.0,1088.61357749]
[1717783826723,162.5755,161.01,161.0,1085.63707749]
[1717783826986,162.5755,161.01,161.0,1082.13653229]
[1717783827196,162.5755,161.01,161.0,1079.15963229]
[1717783827397,162.5755,161.01,161.0,1073.20643229]
[1717783827563,162.5755,161.01,161.0,1054.17043229]
[1717783827768,192.5755,161.01,161.0,1020.15683229]
[1717783827988,200.05062934,161.01,161.0,1008.74083229]
[1717783828189,200.05062934,161.01,161.0,1003.72823229]
[1717783828489,170.05062934,161.01,161.0,1003.72823229]
[1717783828672,170.05062934,161.01,161.0,986.55373229]
[1717783828871,80.05062934,161.01,161.0,972.48683229]
[1717783829205,217.99563206,161.01,161.0,956.42183229]
[1717783829495,217.99563206,161.01,161.0,769.04623768]
[1717783829794,217.99563206,161.01,161.0,693.06966792]
[1717783829974,217.99563206,161.01,161.0,623.54697729]
[1717783830171,129.26072932,161.01,161.0,569.16905054]
[1717783830381,103.01153098,161.01,161.0,523.30278715]
[1717783830591,103.01153098,161.01,161.0,485.17817653]
[1717783830592,248.98455916,161.01,161.0,485.17817653]
[1717783830791,257.96029329,161.01,161.0,442.21659119]
[1717783830995,248.98455916,161.01,161.0,386.9199582]
[1717783831301,231.03955644,161.01,161.0,369.63149962]
[1717783831601,223.5644271,161.01,161.0,369.63149962]
[1717783831798,103.5644271,161.01,161.0,369.63149962]
[1717783831985,223.5644271,161.01,161.0,369.63149962]
[1717783832195,193.5644271,161.01,161.0,369.63149962]
[1717783832502,193.5644271,161.01,161.0,338.71249962]
[1717783832802,231.041078,161.01,161.0,304.94396142]
[1717783832984,248.99167112,161.01,161.0,254.26143403]
[1717783833190,128.99167112,161.01,161.0,237.3849986]
[1717783833391,218.54852818,161.01,161.0,237.3849986]
[1717783833714,192.5755,161.01,161.0,237.3849986]
[1717783833883,72.5755,161.01,161.0,237.3849986]
[1717783834230,192.5755,161.01,161.0,237.3849986]
[1717783834918,192.5755,161.01,161.0,216.5849986]
[1717783835209,200.05420552,161.01,161.0,194.7159986]
[1717783835388,192.5755,161.01,161.0,194.7159986]
[1717783835593,218.00145819,161.01,161.0,142.51240478]
[1717783835793,224.26545819,161.01,161.0,93.49354353]
[1717783835991,224.26545819,161.01,161.0,38.54417205]
[1717783836308,194.26545819,161.01,161.0,18.74555262]
[1717783837379,130.0,160.83,160.66,0.823968]
[1717783837581,10.0,160.73,160.63,2.61337937]
[1717783837799,10.0,160.7,160.63,7.10766983]
[1717783838106,6.5839,160.72,160.64,6.0165]
[1717783838718,126.5839,160.72,160.64,6.0165]
[1717783838890,10.0,160.71,160.64,6.0165]
[1717783839228,6.5839,160.72,160.64,6.0165]
[1717783839713,120.0,160.79,160.64,6.0165]
[1717783839901,4.157368,160.71,160.64,6.0165]
[1717783840211,419.3861917,161.0,160.64,6.0165]
[1717783840212,120.0,160.83,160.64,6.0165]
[1717783840388,10.0,160.93,160.64,6.0165]
[1717783840586,120.0,160.86,160.64,6.0165]
[1717783840808,120.0,160.82,160.64,6.0165]
[1717783841010,120.0,160.92,160.64,6.0165]
[1717783841187,20.0,160.93,160.64,6.0165]
[1717783841506,120.0,160.86,160.64,22.438]
[1717783841701,2.3027,160.68,160.64,22.438]
[1717783842006,120.0,160.8,160.63,20.31679046]
[1717783842228,120.0,160.81,160.63,20.31679046]
[1717783842812,10.0,160.93,160.63,20.31679046]
[1717783842813,120.0,160.75,160.63,20.31679046]
[1717783843198,120.0,160.71,160.63,4.49429046]
[1717783843892,10.0,160.8,160.63,4.49429046]
[1717783844110,10.0,160.77,160.63,4.49429046]
[1717783844410,10.0,160.8,160.51,13.40229551]
[1717783844613,120.0,160.81,160.52,2.3048]
[1717783844820,120.0,160.85,160.53,10.0]
[1717783845113,120.0,160.82,160.51,13.40229551]
[1717783845304,10.0,160.82,160.51,15.70739551]
[1717783845614,120.0,160.79,160.52,12.3049]
[1717783845795,120.0,160.77,160.51,13.40229551]
[1717783845995,120.0,160.79,160.51,13.40229551]
[1717783846396,26.264,160.93,160.51,13.40229551]
[1717783846397,120.0,160.76,160.51,13.40229551]
[1717783846807,120.0,160.78,160.51,13.40229551]
[1717783846999,120.0,160.8,160.51,13.40229551]
[1717783847301,120.0,160.83,160.54,6.1998]
[1717783847506,120.0,160.83,160.54,8.5044]
[1717783847706,16.264,160.93,160.54,6.1998]
[1717783847707,120.0,160.84,160.54,6.1998]
[1717783848018,120.0,160.79,160.54,6.1998]
[1717783848805,120.0,160.77,160.54,6.1998]
[1717783849000,120.0,160.81,160.54,6.1998]
[1717783849310,120.0,160.79,160.54,6.1998]
[1717783849522,120.0,160.83,160.54,6.1998]
[1717783849696,120.0,160.81,160.54,6.1998]
[1717783849899,120.0,160.77,160.54,6.1998]
[1717783850318,120.0,160.79,160.54,6.1998]
[1717783850891,120.0,160.75,160.54,6.1998]
[1717783851293,120.0,160.77,160.54,6.1998]
[1717783851507,120.0,160.76,160.54,6.1998]
[1717783852817,120.0,160.74,160.54,6.1998]
[1717783853507,120.0,160.76,160.54,6.1998]
[1717783854031,120.0,160.75,160.54,6.1998]
[1717783854322,120.0,160.73,160.55,181.90028637]
[1717783854522,120.0,160.75,160.55,181.90028637]
[1717783854703,120.0,160.73,160.55,181.90028637]
[1717783855826,120.0,160.71,160.55,181.90028637]
[1717783856030,120.0,160.75,160.55,181.90028637]
[1717783856707,120.0,160.7,160.55,181.90028637]
[1717783857203,120.0,160.73,160.55,181.90028637]
[1717783857405,120.0,160.75,160.55,181.90028637]
[1717783857811,120.0,160.73,160.55,181.90028637]
[1717783858010,10.0,160.8,160.55,181.90028637]
[1717783858011,120.0,160.75,160.55,181.90028637]
[1717783858208,120.0,160.73,160.55,181.90028637]
[1717783858416,120.0,160.75,160.55,181.90028637]
[1717783858714,120.0,160.73,160.55,181.90028637]
[1717783858929,120.0,160.71,160.55,181.90028637]
[1717783859103,120.0,160.74,160.55,181.90028637]
[1717783860228,120.0,160.73,160.55,181.90028637]
[1717783860426,120.0,160.71,160.55,181.90028637]
[1717783860722,120.0,160.69,160.54,6.1998]
[1717783860897,10.0,160.81,160.54,6.1998]
[1717783860898,120.0,160.67,160.54,6.1998]
[1717783861100,120.0,160.65,160.54,6.1998]
[1717783861325,120.0,160.69,160.51,13.40229551]
[1717783861511,120.0,160.79,160.51,13.40229551]
[1717783861718,120.0,160.75,160.51,13.40229551]
[1717783862020,10.0,160.93,160.51,13.40229551]
[1717783862021,120.0,160.66,160.51,13.40229551]
[1717783862329,120.0,160.73,160.51,13.40229551]
[1717783862504,120.0,160.69,160.51,13.40229551]
[1717783862706,120.0,160.67,160.51,13.40229551]
[1717783862900,120.0,160.73,160.51,13.40229551]
[1717783863106,120.0,160.68,160.51,13.40229551]
[1717783863417,397.5,160.78,160.51,13.40229551]
[1717783863616,120.0,160.68,160.51,13.40229551]
[1717783864009,10.0,160.71,160.51,13.40229551]
[1717783864210,120.0,160.67,160.51,13.40229551]
[1717783864418,120.0,160.64,160.51,13.40229551]
[1717783864722,120.0,160.53,160.51,3.22839046]
[1717783864926,120.0,160.53,160.51,3.17556336]
[1717783865828,130.0,160.53,160.51,3.17556336]
[1717783866214,120.0,160.53,160.51,3.17556336]
[1717783866552,120.0,160.54,160.51,3.17556336]
[1717783866709,120.0,160.52,160.51,3.17556336]
[1717783867049,120.0,160.56,160.51,3.17556336]
[1717783867205,120.0,160.62,160.51,3.17556336]